Cogmind - Beta 11 @@@ ROGUE MODE // 2022.03.22 @ 10:07:54 Player: Laraso Result: Self-destructed Performance ------------- Evolutions (2) 1000 Regions Visited (5) 1000 Robots Destroyed (28) 140 Value Destroyed (745) 745 Prototype IDs (1) 20 Alien Tech Used (0) 0 Bonus (300) 300 TOTAL SCORE: 3205 Bonus ------- Aligned with FarCom 300 Cogmind --------- Core Integrity 364/550 Matter 365/600 Energy 180/180 System Corruption 0% Temperature Cool (0) Movement Walking (90) Location -8/Materials Parts ------- > --- POWER (2) -------- Light Deuterium Engine Light Deuterium Engine > --- PROPULSION (4) --- VSS Leg VSS Leg VSS Leg > --- UTILITY (3) ------ Large Matter Pod Large Matter Pod > --- WEAPON (2) ------- Longsword +1 > --- INVENTORY (5) ---- Light Treads VSS Leg Beam Cannon Light Assault Rifle Peak State ------------ > --- POWER ------------ Light Deuterium Engine Light Deuterium Engine > --- PROPULSION ------- VSS Leg VSS Leg VSS Leg VSS Leg > --- UTILITY ---------- Large Matter Pod Large Matter Pod > --- WEAPON ----------- Grenade Launcher Longsword +1 > --- INVENTORY -------- Light Treads Beam Cannon Light Assault Rifle [Rating: 29] Favorites ----------- Power Light Nuclear Core Engine Light Deuterium Engine Power Core Light Nuclear Core Propulsion Aluminum Leg Leg Aluminum Leg Utility Large Matter Pod Storage Large Matter Pod Weapon Longsword +1 Energy Gun Medium Laser Energy Cannon Beam Cannon Ballistic Gun Light Assault Rifle Ballistic Cannon Bore Cannon Launcher Grenade Launcher Slashing Weapon Longsword +1 Build | -11 -10 -10 -10 -9 -8 ------- Run | Scr Mat Min Exi Min Mat Slots Evolved 4 | . . . . . 4 Power 1 | . . . . . 1 Propulsion 2 | . . . . . 2 Utility 1 | . . . . . 1 Weapon . | . . . . . . Parts Attached 23 | 4 3 1 3 2 10 Power 4 | 1 . 1 . . 2 Engine 3 | 1 . . . . 2 Core 1 | . . 1 . . . Reactor . | . . . . . . Propulsion 9 | 2 . . . . 7 Treads . | . . . . . . Leg 9 | 2 . . . . 7 Wheel . | . . . . . . Hover . | . . . . . . Flight . | . . . . . . Utility 3 | . 1 . 2 . . Device . | . . . . . . Storage 3 | . 1 . 2 . . Processor . | . . . . . . Hackware . | . . . . . . Protection . | . . . . . . Artifact . | . . . . . . Weapon 7 | 1 2 . 1 2 1 Energy Gun 1 | 1 . . . . . Energy Cannon 1 | . 1 . . . . Ballistic Gun 1 | . . . . 1 . Ballistic Cannon 1 | . . . . 1 . Launcher 2 | . 1 . . . 1 Special Weapon . | . . . . . . Impact Weapon . | . . . . . . Slashing Weapon 1 | . . . 1 . . Piercing Weapon . | . . . . . . Special Melee Weapon . | . . . . . . Unidentified Prototypes 1 | . . . 1 . . Parts Lost 3 | . . . . . 3 Power . | . . . . . . Propulsion 2 | . . . . . 2 Utility . | . . . . . . Weapon 1 | . . . . . 1 Highest Loss Streak 2 | . . . . . 2 To Critical Strikes . | . . . . . . Average Slot Usage (%) 88 | . 72 85 98 99 66 Engine 4 | . 14 14 . . 10 Core 9 | . . . 14 14 . Leg 25 | . 28 28 28 28 20 Storage 22 | . 3 14 26 28 18 Energy Cannon 5 | . 6 14 14 . . Ballistic Gun 1 | . . . . 3 . Ballistic Cannon 5 | . . . . 9 6 Launcher 5 | . 11 14 11 . 2 Slashing Weapon 7 | . . . 2 14 9 Naked Turns . | . . . . . . Heaviest Build 23 | 5 11 13 17 23 23 Greatest Support 48 | 20 20 20 20 20 48 Greatest Overweight (x) 1 | . . . . 1 1 Average Overweight (x) . | . . . . . . Largest Inventory Capacity 5 | 5 5 5 5 5 5 Average Capacity 5 | 5 5 5 5 5 5 Most Carried 5 | 2 1 2 4 5 5 Average Carried 3 | . . 1 2 4 4 Final Capacity 5 | 5 5 5 5 5 5 Final Carried 5 | . . 1 3 5 4 Class Distribution -------------------- 100% | Mutant Dominant Class ---------------- Mutant | -10/Materials Mutant | -10/Mines Mutant | -10/Exiles Mutant | -9/Mines Mutant | -8/Materials Resources | -11 -10 -10 -10 -9 -8 ----------- Run | Scr Mat Min Exi Min Mat Matter Collected 619 | 240 . 91 108 99 81 Remotely . | . . . . . . Salvage Created 767 | 44 . 20 . 93 610 Parts 55 | 2 . 1 . 13 39 Haulers Intercepted . | . . . . . . Recyclers Shooed . | . . . . . . Parts Field Recycled . | . . . . . . Retrieved Matter . | . . . . . . Parts Self-Destructed . | . . . . . . Prevented . | . . . . . . Kills | -11 -10 -10 -10 -9 -8 ------- Run | Scr Mat Min Exi Min Mat Combat Hostiles Destroyed 21 | 1 . 1 . 6 13 Melee 13 | . . . . 6 7 Guns 1 | 1 . . . . . Cannons 1 | . . 1 . . . AOE 6 | . . . . . 6 Classes Destroyed 8 | 1 . 1 . . 6 Worker 3 | . . . . . 3 Builder 3 | . . . . . 3 Watcher 1 | . . . . . 1 Swarmer 7 | . . 1 . 6 . Grunt 11 | 1 . . . . 10 Brawler 1 | . . . . . 1 Duelist 1 | . . . . . 1 Sentry 1 | . . . . . 1 Best Kill Streak 6 | 1 . 1 . 3 6 Combat Bots Only 3 | 1 . 1 . 3 3 Max Kills in Single Turn 3 | 1 . 1 . 1 3 Gunslinging . | . . . . . . Exploded 2 | . . . . . 2 Melee 1 | . . . . 1 1 Uniques/NPCs Destroyed . | . . . . . . Combat | -11 -10 -10 -10 -9 -8 -------- Run | Scr Mat Min Exi Min Mat Damage Taken 998 | 21 . 29 . 169 779 Core 242 | . . 14 . 42 186 Absorbed by Shields . | . . . . . . Core Remaining (%) 88 | 100 . . . 77 . Volleys Fired 29 | 3 . 3 . . 23 Largest 1 | 1 . 1 . . 1 Hottest 60 | 50 . 60 . . 57 Shots Fired 29 | 3 . 3 . . 23 Gun 3 | 3 . . . . . Cannon 6 | . . 3 . . 3 Launcher 20 | . . . . . 20 Special . | . . . . . . Kinetic 3 | . . . . . 3 Thermal 6 | 3 . 3 . . . Explosive 20 | . . . . . 20 Electromagnetic . | . . . . . . Robot Hit Streak 5 | 3 . 1 . . 5 Robot Miss Streak 3 | . . 1 . . 3 Penetration Max . | . . . . . . Secondary Targets . | . . . . . . Shots Hit Robots 48 | 3 . 1 . 9 35 Core Hits 39 | 2 . 1 . 3 33 Critical Kills . | . . . . . . Critical Parts Destroyed . | . . . . . . Critical Strikes 4 | . . . . . 4 Sever 4 | . . . . . 4 Melee Attacks 35 | . . . . 10 25 Impact . | . . . . . . Slashing 35 | . . . . 10 25 Piercing . | . . . . . . Sneak Attacks 1 | . . . . 1 . Combat Hostiles . | . . . . . . Follow-up Attacks . | . . . . . . Damage Inflicted 2474 | 36 . 17 . 442 1979 Guns 36 | 36 . . . . . Cannons 17 | . . 17 . . . Explosions 905 | . . . . . 905 Melee 1516 | . . . . 442 1074 Ramming . | . . . . . . Kinetic . | . . . . . . Thermal 53 | 36 . 17 . . . Explosive 905 | . . . . . 905 Electromagnetic . | . . . . . . Impact . | . . . . . . Slashing 1516 | . . . . 442 1074 Piercing . | . . . . . . Highest Corruption . | . . . . . . Average Corruption . | . . . . . . Corruption Purged . | . . . . . . Corruption Blocked . | . . . . . . Overload Shots . | . . . . . . Overflow Damage 203 | . . . . 104 99 Projectiles . | . . . . . . Explosions 24 | . . . . . 24 Melee 179 | . . . . 104 75 Knockbacks . | . . . . . . Impact . | . . . . . . Kinetic . | . . . . . . Secondary . | . . . . . . Self-Inflicted Damage 47 | . . . . . 47 Shots 3 | . . . . . 3 Rammed . | . . . . . . Targets Rammed . | . . . . . . Kicked . | . . . . . . Crushed . | . . . . . . Highest Temperature 62 | 62 . 60 . . 36 Average Temperature 18 | 39 . 31 . . 9 Received Heat Transfer 291 | 12 . . . . 279 Siege Activations . | . . . . . . Robots Corrupted . | . . . . . . Combat Hostiles . | . . . . . . Parts Fried . | . . . . . . Impact Corruptions . | . . . . . . Robots Melted . | . . . . . . Combat Hostiles . | . . . . . . Parts Melted . | . . . . . . Heat Transferred 148 | 111 . 37 . . . Parts Sabotaged . | . . . . . . Parts Stolen . | . . . . . . Parts Stripped . | . . . . . . Power Chain Reactions . | . . . . . . Missiles Intercepted . | . . . . . . Alert | -11 -10 -10 -10 -9 -8 ------- Run | Scr Mat Min Exi Min Mat Peak Influence 358 | 20 13 54 . 70 358 Initial 13 | . 13 4 . . . Average 61 | . 13 50 . 61 79 Maximum Alert Level 1 | . . . . . 1 Low Security (%) 93 | 100 100 100 . 100 81 Level 1 6 | . . . . . 18 Level 2 . | . . . . . . Level 3 . | . . . . . . Level 4 . | . . . . . . Level 5 . | . . . . . . High Security . | . . . . . . Max Security . | . . . . . . Squads Dispatched 3 | . . . . . 3 Investigation . | . . . . . . Extermination . | . . . . . . Reinforcement 3 | . . . . . 3 Assault . | . . . . . . Garrison . | . . . . . . Intercept . | . . . . . . Searches Triggered . | . . . . . . Construction Impeded 1 | . . . . . 1 Haulers Reinforced . | . . . . . . Active Scanning Responses . | . . . . . . Cargo Convoy Interrupts . | . . . . . . Stealth | -11 -10 -10 -10 -9 -8 --------- Run | Scr Mat Min Exi Min Mat Distress Signals 2 | . . . . . 2 Communications Jammed . | . . . . . . Distress Signals . | . . . . . . Times Spotted 32 | 1 . 3 . 6 22 Peak Tracking Total 8 | 1 . 3 . 3 8 Tactical Retreats 1 | . . 1 . . . Traps | -11 -10 -10 -10 -9 -8 ------- Run | Scr Mat Min Exi Min Mat Traps Triggered . | . . . . . . Indirectly . | . . . . . . Trap Hack Attempts . | . . . . . . Triggered . | . . . . . . Disarmed . | . . . . . . Reprogrammed . | . . . . . . Reused . | . . . . . . Traps Extracted . | . . . . . . Installed . | . . . . . . Triggered . | . . . . . . Machines | -11 -10 -10 -10 -9 -8 ---------- Run | Scr Mat Min Exi Min Mat Machines Disabled . | . . . . . . Max in Single Turn . | . . . . . . Machines Sabotaged . | . . . . . . Garrisons Compromised . | . . . . . . Overloaded Fab Kills . | . . . . . . Hacking | -11 -10 -10 -10 -9 -8 --------- Run | Scr Mat Min Exi Min Mat Machines Accessed 4 | . 1 . 3 . . Terminals 1 | . 1 . . . . Fabricators . | . . . . . . Repair Stations . | . . . . . . Recycling Units . | . . . . . . Scanalyzers . | . . . . . . Garrison Access . | . . . . . . Total Hacks 24 | . 3 . 21 . . Successful 22 | . 1 . 21 . . Failed 2 | . 2 . . . . Catastrophic . | . . . . . . Database Lockouts . | . . . . . . Manual 2 | . . . 2 . . Terminals 3 | . 3 . . . . Fabricators . | . . . . . . Repair Stations . | . . . . . . Recycling Units . | . . . . . . Scanalyzers . | . . . . . . Garrison Access . | . . . . . . Terminal Hacks 22 | . 1 . 21 . . Record 22 | . 1 . 21 . . Fabricator Hacks . | . . . . . . Repair Station Hacks . | . . . . . . Recycling Unit Hacks . | . . . . . . Scanalyzer . | . . . . . . Garrison Access Hacks . | . . . . . . Unauthorized Hacks . | . . . . . . Terminals . | . . . . . . Fabricators . | . . . . . . Repair Stations . | . . . . . . Recycling Units . | . . . . . . Scanalyzers . | . . . . . . Garrison Access . | . . . . . . Data Cores Recovered . | . . . . . . Used . | . . . . . . Hacking Detections 1 | . 1 . . . . Full Trace Events . | . . . . . . Feedback Events . | . . . . . . Feedback Blocked . | . . . . . . Robot Schematics Acquired . | . . . . . . Robots Built . | . . . . . . Authchips . | . . . . . . Time . | . . . . . . Total Robot Build Rating . | . . . . . . Part Schematics Acquired . | . . . . . . Parts Built . | . . . . . . Authchips . | . . . . . . Time . | . . . . . . Total Part Build Rating . | . . . . . . Parts Repaired . | . . . . . . Time . | . . . . . . Parts Recycled . | . . . . . . Recycled Matter . | . . . . . . Retrieved Matter . | . . . . . . Retrieved Components . | . . . . . . Parts Scanalyzed . | . . . . . . Part Schematics Acquired . | . . . . . . Parts Damaged . | . . . . . . Bothacking | -11 -10 -10 -10 -9 -8 ------------ Run | Scr Mat Min Exi Min Mat Used RIF Installer . | . . . . . . Robots Hacked . | . . . . . . Non-combat . | . . . . . . Combat . | . . . . . . Robot Hacks Applied . | . . . . . . Relay Couplers Released . | . . . . . . Fabnet Peak Effective % . | . . . . . . Robots Rewired . | . . . . . . Allies Hacked . | . . . . . . Hacks Repelled . | . . . . . . Allies | -11 -10 -10 -10 -9 -8 -------- Run | Scr Mat Min Exi Min Mat Total Allies . | . . . . . . Largest Group . | . . . . . . Highest-Rated Group . | . . . . . . Highest-Rated Ally . | . . . . . . Total Orders . | . . . . . . Ally Attacks . | . . . . . . Total Damage . | . . . . . . Kills . | . . . . . . Allies Corrupted . | . . . . . . Allies Melted . | . . . . . . Intel | -11 -10 -10 -10 -9 -8 ------- Run | Scr Mat Min Exi Min Mat Robot Analysis Total . | . . . . . . Derelict Logs Recovered 1 | . . . . 1 . Drone Launches . | . . . . . . Drone Recoveries . | . . . . . . Exploration | -11 -10 -10 -10 -9 -8 ------------- Run | Scr Mat Min Exi Min Mat Turns Passed 2527 | 96 126 104 745 800 656 Spaces Moved 1578 | 78 92 72 615 465 256 Core 26 | 26 . . . . . Treads . | . . . . . . Legs 1552 | 52 92 72 615 465 256 Wheels . | . . . . . . Hover . | . . . . . . Flight . | . . . . . . Fastest Speed 50 | 50 120 120 120 120 90 Average Speed 139 | 96 120 120 120 163 167 Slowest Speed 190 | 120 120 120 120 190 190 Overloaded Moves . | . . . . . . Propulsion Burnouts . | . . . . . . Robots Hopped . | . . . . . . Cave-ins Triggered . | . . . . . . Exploration Rate (%) 38 | 8 15 15 93 86 16 Regions Visited 5 Branch Regions 3 Pre-discovered Areas 1 | . . . 1 . . Known Exits Taken . | . . . . . . Unknown Exits Taken 5 | 1 1 1 1 1 . Scrap Searched 2 | . . . . 2 . Spaces Dug . | . . . . . . Terrain Destroyed 85 | . . . . . 85 Melee . | . . . . . . Projectile 3 | . . . . . 3 AOE 82 | . . . . . 82 Terrain Rammed . | . . . . . . Walls Destroyed . | . . . . . . Machines Disabled . | . . . . . . Actions | -11 -10 -10 -10 -9 -8 --------- Run | Scr Mat Min Exi Min Mat Total 1850 | 95 108 88 622 498 439 Wait 150 | 7 9 7 1 19 107 Move 1573 | 77 91 71 614 464 256 Hop . | . . . . . . Pick Up 24 | 4 3 3 2 1 11 Fast Attach 3 | . . . 1 1 1 Attach 20 | 4 3 1 2 1 9 Detach 6 | . 1 1 2 2 . Swap . | . . . . . . Drop 10 | . 1 2 . . 7 Fire 29 | 3 . 3 . . 23 Melee 35 | . . . . 10 25 Ram . | . . . . . . Kick . | . . . . . . Crush . | . . . . . . Escape Stasis . | . . . . . . Rewire . | . . . . . . Trap . | . . . . . . Miscellaneous . | . . . . . . Route ------- -11/Scrapyard -10/Materials -10/Mines (discovered 2 exits: [*Mat] / *Exi) -10/Exiles -9/Mines -8/Materials (discovered 1 exit: [*Fac]) History --------- Turn | Location | Event 2 | -11/Scrapyard | Met Revision 17 74 | -11/Scrapyard | Discovered new exit (range 8) 97 | -11/Scrapyard | Entered Materials 141 | -10/Materials | Discovered new exit (range 16) 199 | -10/Materials | Met 8R-AWN 223 | -10/Materials | Entered Mines 225 | -10/Mines | Followed 8R-AWN into the Mines 281 | -10/Mines | Discovered new exit (range 9) 290 | -10/Mines | Discovered new exit (range 5) 311 | -10/Mines | Build established: Mutant 327 | -10/Mines | Entered Exiles 359 | -10/Exiles | Welcomed by 8R-AWN 379 | -10/Exiles | Met EX-HEX 458 | -10/Exiles | Met EX-DEC 484 | -10/Exiles | Learned location of Zion (-7) 562 | -10/Exiles | Discovered new exit (range 12) 647 | -10/Exiles | Visited The Gauntlet 845 | -10/Exiles | Met EX-BIN 912 | -10/Exiles | Aligned with FarCom system 913 | -10/Exiles | Given EX-Vault access code 950 | -10/Exiles | Opened EX-Vault 956 | -10/Exiles | Found Prototype Slashing Weapon 964 | -10/Exiles | Identified Longsword +1 983 | -10/Exiles | Warned to stay clear of 0b10 Research branches 1072 | -10/Exiles | Left Exiles lab with Longsword +1 1072 | -10/Exiles | Entered Mines 1295 | -9/Mines | A weapon hastily lodged in a ceiling crevice suddenly fell to the ground 1364 | -9/Mines | Learned Materials non-interactive machine intel 1859 | -9/Mines | Discovered new exit (range 7) 1872 | -9/Mines | Entered Materials 1872 | -8/Materials | Evolved 4 slots: Power x1, Propulsion x2, Utility x1 1873 | -8/Materials | Loaded intel: 33 non-interactive machine locations 2515 | -8/Materials | Discovered new exit (range 14) 2528 | -8/Materials | Self-destructed Last Messages --------------- 02516_ K-01 Serf collects debris. 02516_ U-05 Engineer lays Concrete. 02519_ ALERT: Hostiles spotted, dispatching reinforcements to Terminal M003. 02519_ U-05 Engineer builds a Wall. 02519_ Penetrated by Slug. 02521_ K-01 Serf collects debris. 02523_ U-05 Engineer lays Concrete. 02523_ VSS Leg severed. 02524_ U-05 Engineer lays Concrete. 02524_ C-17 Slicer Surge Thruster severed. 02525_ U-05 Engineer lays Concrete. 02525_ K-01 Serf collects debris. 02525_ Slug penetrates Wall. 02525_ Scanalyzer disabled. 02525_ U-05 Engineer builds a Wall. 02525_ Grenade Launcher severed. 02526_ U-05 Engineer builds a Wall. 02526_ Destroyed Reaction Control System. 02528_ K-01 Serf collects debris. Map ----- +----------------------------------------------------+ | ??????????#"" + | | ??????????#"" """ # % | | ??????????# """ ############### ############# | | ??????????# """ #?????????????# #???????????? | | ??????????# = #?????????????# #???????????? | | ??????????##########?????????????# #???????????? | | ?????????????????????????????????# ############? | | ?????????????????????????????????# ## #? | | ????????????????????????????????## ##"" #? | | ??????"""????????? ??? ?????????# #"T #? | | ??????"""????????? ??? ??????### % #"" """ #? | | ??????"""?????????? ? ?????## %+ ! """ #? | | ???????????????????? ! ?????# # #% """ #? | | ?????????????????????? ######## # #? | | ?"""??"""??????######### ## ## ## # #? | | ?"""??"""?? #### # = ## ## #+#########? | | ?"""??"""??? # ##??????????? | | ???????????? # #??????????? | | ???????????? % = # ##??????????? | | ??????????????# ## ## ### # #??????????? | | ??????????????## %* k # =# ##??????????? | | ???????????????# = ##= * " * #??##???????? | | ???????????????# ???#== =%"""# =### #???????? | | ???????????????#?????# = S"## #???????? | | ?????????????????????# ## ### #???????? | | ?????????????????????# c@]! + #????##???????? | | ?????????????????????##wcc;######+##?????????????? | | ??????????????????????# #?????Y???????????????? | | ?????????????????????# #?????????????????????? | | ?????????????????????# #?????????????????????? | | ?????????????????????# # ????????????????????? | | ?????????????????????## ## """?????????????????? | | ??????????????????????# #? """?????????????????? | | ??????????????????????## ##??"""?????????????????? | | ??????????????????????? ???? ?????????????????? | | ??????????????????????? H ????##?????????????????? | | ??????????????????????? ???????????????????????? | | ???????????????????????# ???????????????????????? | | ?"""???????????????????? ???????????????????????? | | """""???????????????????